[Event "2. Itzehoer Schach Open"]
[Site "Itzehoe, Germany"]
[Date "2023.04.30"]
[Round "4.25"]
[White "Drozd, Maciej"]
[Black "Harten, Jan"]
[Result "1-0"]
[TimeControl "90 min / 40 Züge + 30 min + 30 Sek pro Zug"]
[WhiteElo "1334"]
[BlackElo "1819"]

1. e4 {[%clk 01:30:57]} {[%emt 00:00:02]} e5 {[%clk 01:30:53]} {[%emt
00:00:08]} 2. Nf3 {[%clk 01:31:21]} {[%emt 00:00:06]} Nc6 {[%clk 01:31:16]}
{[%emt 00:00:08]} 3. d4 {[%clk 01:31:43]} {[%emt 00:00:07]} exd4 {[%clk
01:31:01]} {[%emt 00:00:45]} 4. Nxd4 {[%clk 01:32:06]} {[%emt 00:00:07]} Nxd4
{[%clk 01:29:36]} {[%emt 00:01:56]} 5. Qxd4 {[%clk 01:32:27]} {[%emt 00:00:08]}
Qf6 {[%clk 01:29:11]} {[%emt 00:00:55]} 6. Qe3 {[%clk 01:32:30]} {[%emt
00:00:26]} Bb4+ {[%clk 01:27:47]} {[%emt 00:01:54]} 7. c3 {[%clk 01:30:10]}
{[%emt 00:02:50]} Ba5 {[%clk 01:27:32]} {[%emt 00:00:45]} 8. Bc4 {[%clk
01:27:02]} {[%emt 00:03:38]} Nh6 {[%clk 01:23:34]} {[%emt 00:04:28]} 9. h3
{[%clk 01:23:30]} {[%emt 00:04:02]} Bb6 {[%clk 01:21:06]} {[%emt 00:02:59]} 10.
Qe2 {[%clk 01:21:23]} {[%emt 00:02:36]} d6 {[%clk 01:20:00]} {[%emt 00:01:37]}
11. Be3 {[%clk 01:20:31]} {[%emt 00:01:22]} Qg6 {[%clk 01:17:18]} {[%emt
00:03:10]} 12. Nd2 {[%clk 01:14:31]} {[%emt 00:06:32]} Be6 {[%clk 01:08:16]}
{[%emt 00:09:31]} 13. Bd3 {[%clk 01:07:20]} {[%emt 00:07:42]} Bxe3 {[%clk
01:02:31]} {[%emt 00:06:13]} 14. Qxe3 {[%clk 01:06:58]} {[%emt 00:00:53]} Qh5
{[%clk 00:59:48]} {[%emt 00:03:12]} 15. O-O {[%clk 01:02:20]} {[%emt 00:05:09]}
f6 {[%clk 00:55:39]} {[%emt 00:04:39]} 16. Bc4 {[%clk 00:47:47]} {[%emt
00:15:03]} Qf7 {[%clk 00:47:59]} {[%emt 00:08:10]} 17. Bxe6 {[%clk 00:44:58]}
{[%emt 00:03:18]} Qxe6 {[%clk 00:48:23]} {[%emt 00:00:07]} 18. Nf3 {[%clk
00:44:02]} {[%emt 00:01:26]} O-O {[%clk 00:47:39]} {[%emt 00:01:14]} 19. Nd4
{[%clk 00:42:17]} {[%emt 00:02:15]} Qe7 {[%clk 00:46:34]} {[%emt 00:01:35]} 20.
Qd3 {[%clk 00:40:56]} {[%emt 00:01:52]} a6 {[%clk 00:43:55]} {[%emt 00:03:09]}
21. Rfe1 {[%clk 00:36:09]} {[%emt 00:05:16]} Rfe8 {[%clk 00:42:51]} {[%emt
00:01:34]} 22. Re3 {[%clk 00:26:24]} {[%emt 00:10:16]} Qf7 {[%clk 00:37:28]}
{[%emt 00:05:51]} 23. c4 {[%clk 00:20:53]} {[%emt 00:06:02]} Rad8 {[%clk
00:31:31]} {[%emt 00:06:27]} 24. Rd1 {[%clk 00:19:08]} {[%emt 00:02:15]} Kh8
{[%clk 00:25:46]} {[%emt 00:06:15]} 25. a3 {[%clk 00:16:36]} {[%emt 00:03:03]}
Ng8 {[%clk 00:26:00]} {[%emt 00:00:16]} 26. Qc3 {[%clk 00:15:54]} {[%emt
00:01:11]} Ne7 {[%emt 00:04:40]} 27. c5 {[%clk 00:12:51]} dxc5 {[%clk
00:22:31]} {[%emt 00:03:22]} 28. Qxc5 {[%clk 00:13:04]} {[%emt 00:00:16]} Nc6
{[%clk 00:21:49]} {[%emt 00:01:13]} 29. Red3 {[%clk 00:12:08]} {[%emt
00:01:26]} Ne5 {[%clk 00:18:54]} {[%emt 00:03:25]} 30. R3d2 {[%clk 00:07:52]}
{[%emt 00:04:46]} Rd6 {[%clk 00:14:09]} {[%emt 00:05:14]} 31. Nf5 {[%clk
00:06:25]} {[%emt 00:01:59]} Rxd2 {[%clk 00:13:08]} {[%emt 00:01:31]} 32. Rxd2
{[%clk 00:06:38]} {[%emt 00:00:17]} Nc4 {[%clk 00:11:00]} {[%emt 00:02:37]} 33.
Re2 {[%clk 00:06:15]} {[%emt 00:00:53]} g6 {[%clk 00:08:19]} {[%emt 00:03:08]}
34. Ng3 {[%clk 00:05:35]} {[%emt 00:01:12]} h5 {[%clk 00:06:52]} {[%emt
00:01:58]} 35. Rc2 {[%clk 00:05:24]} {[%emt 00:00:41]} b5 {[%clk 00:06:18]}
{[%emt 00:01:04]} 36. b3 {[%clk 00:04:07]} {[%emt 00:01:47]} Re5 {[%clk
00:03:43]} {[%emt 00:03:03]} 37. Qa7 {[%clk 00:03:08]} {[%emt 00:01:31]} Nxa3
{[%clk 00:03:39]} {[%emt 00:00:34]} 38. Rxc7 {[%clk 00:03:33]} {[%emt
00:00:05]} Qf8 {[%clk 00:03:00]} {[%emt 00:01:09]} 39. Qxa6 {[%clk 00:03:16]}
{[%emt 00:00:48]} b4 {[%clk 00:03:07]} {[%emt 00:00:23]} 40. Rc8 {[%clk
00:01:35]} {[%emt 00:02:10]} Re8 {[%clk 00:03:25]} {[%emt 00:00:12]} 41. Rxe8
{[%clk 00:01:07]} {[%emt 00:00:57]} Qxe8 {[%clk 00:01:45]} {[%emt 00:02:12]} 42.
Qxf6+ {[%clk 00:30:14]} {[%emt 00:01:21]} Kh7 {[%clk 00:32:10]} {[%emt
00:00:06]} 43. e5 {[%clk 00:28:11]} {[%emt 00:02:34]} Nb5 {[%clk 00:28:06]}
{[%emt 00:04:33]} 44. Ne4 {[%clk 00:26:17]} {[%emt 00:02:25]} Nd4 {[%clk
00:26:58]} {[%emt 00:01:37]} 45. Qd6 {[%clk 00:25:44]} {[%emt 00:01:01]} Ne2+
{[%clk 00:26:08]} {[%emt 00:01:21]} 46. Kf1 {[%clk 00:24:17]} {[%emt 00:01:57]}
Qb5 {[%clk 00:26:36]} {[%emt 00:00:02]} 47. Qe7+ {[%clk 00:24:31]} {[%emt
00:00:16]} Kh6 {[%clk 00:26:10]} {[%emt 00:00:55]} 48. Qf8+ {[%clk 00:24:54]}
{[%emt 00:00:07]} 1-0

[Event "2. Itzehoer Schach Open"]
[Site "Itzehoe, Germany"]
[Date "2023.04.30"]
[Round "4.19"]
[White "Wohlrabe, Joerg"]
[Black "Frahm, Ben Jonas"]
[Result "1-0"]
[TimeControl "90 min / 40 Züge + 30 min + 30 Sek pro Zug"]
[WhiteElo "1635"]
[BlackElo "1406"]

1. e4 {[%clk 01:30:57]} e5 {[%clk 01:30:53]} {[%emt 00:00:08]} 2. Nf3 {[%clk
01:31:22]} {[%emt 00:00:04]} Nf6 {[%clk 01:31:17]} {[%emt 00:00:07]} 3. Nxe5
{[%clk 01:31:47]} {[%emt 00:00:05]} d6 {[%clk 01:31:37]} {[%emt 00:00:10]} 4.
Nf3 {[%clk 01:32:09]} {[%emt 00:00:07]} Nxe4 {[%clk 01:32:02]} {[%emt
00:00:05]} 5. d4 {[%clk 01:32:29]} {[%emt 00:00:10]} d5 {[%clk 01:32:27]}
{[%emt 00:00:06]} 6. Bd3 {[%clk 01:32:01]} {[%emt 00:00:57]} Bd6 {[%clk
01:32:50]} {[%emt 00:00:07]} 7. O-O {[%clk 01:32:10]} {[%emt 00:00:21]} O-O
{[%clk 01:33:15]} {[%emt 00:00:06]} 8. c4 {[%clk 01:31:55]} {[%emt 00:00:44]}
c6 {[%clk 01:33:39]} {[%emt 00:00:07]} 9. cxd5 {[%clk 01:32:00]} {[%emt
00:00:24]} cxd5 {[%clk 01:33:58]} {[%emt 00:00:11]} 10. Nc3 {[%clk 01:32:07]}
{[%emt 00:00:23]} Re8 {[%clk 01:33:18]} {[%emt 00:01:11]} 11. Re1 {[%clk
01:30:08]} {[%emt 00:02:28]} Nxc3 {[%clk 01:33:04]} {[%emt 00:00:44]} 12. bxc3
{[%clk 01:30:02]} {[%emt 00:00:36]} Bg4 {[%clk 01:32:50]} {[%emt 00:00:44]} 13.
Rxe8+ {[%clk 01:28:42]} {[%emt 00:01:49]} Qxe8 {[%clk 01:33:08]} {[%emt
00:00:13]} 14. Be3 {[%clk 01:27:45]} {[%emt 00:01:27]} Nd7 {[%clk 01:31:59]}
{[%emt 00:01:39]} 15. Bxh7+ {[%clk 01:26:44]} {[%emt 00:01:30]} Kxh7 {[%clk
01:31:22]} {[%emt 00:01:08]} 16. Ng5+ {[%clk 01:27:07]} {[%emt 00:00:06]} Kg8
{[%clk 01:30:30]} {[%emt 00:01:23]} 17. Qxg4 {[%clk 01:27:18]} {[%emt
00:00:19]} Nf6 {[%clk 01:30:29]} {[%emt 00:00:31]} 18. Qd1 {[%clk 01:26:23]}
{[%emt 00:01:24]} Rc8 {[%clk 01:29:06]} {[%emt 00:01:54]} 19. Bd2 {[%clk
01:21:12]} {[%emt 00:05:41]} Ne4 {[%clk 01:27:59]} {[%emt 00:01:37]} 20. Nxe4
{[%clk 01:21:03]} {[%emt 00:00:39]} Qxe4 {[%clk 01:28:00]} {[%emt 00:00:29]} 21.
g3 {[%clk 01:18:46]} {[%emt 00:02:46]} Qd3 {[%clk 01:26:25]} {[%emt 00:02:06]}
22. Be1 {[%clk 01:17:20]} {[%emt 00:01:55]} Qe4 {[%clk 01:24:07]} {[%emt
00:02:49]} 23. Qb1 {[%clk 01:15:44]} {[%emt 00:02:04]} Qe7 {[%clk 01:22:58]}
{[%emt 00:01:41]} 24. Qb5 {[%clk 01:14:18]} {[%emt 00:01:56]} Ba3 {[%clk
01:20:39]} {[%emt 00:02:49]} 25. Bd2 {[%clk 01:12:00]} {[%emt 00:02:47]} Rd8
{[%clk 01:16:07]} {[%emt 00:05:03]} 26. Re1 {[%clk 01:11:04]} {[%emt 00:01:25]}
Qd7 {[%clk 01:13:40]} {[%emt 00:02:58]} 27. Qb3 {[%clk 01:08:58]} {[%emt
00:02:35]} Be7 {[%clk 01:12:06]} {[%emt 00:02:05]} 28. Rb1 {[%clk 01:08:03]}
{[%emt 00:01:24]} b6 {[%clk 01:11:27]} {[%emt 00:01:10]} 29. Qb5 {[%clk
01:04:25]} {[%emt 00:04:07]} Qf5 {[%clk 01:05:27]} {[%emt 00:06:32]} 30. Re1
{[%clk 01:02:39]} {[%emt 00:02:14]} Qc2 {[%clk 01:04:01]} {[%emt 00:01:57]} 31.
Rxe7 {[%clk 00:59:51]} {[%emt 00:03:18]} Qxd2 {[%clk 01:04:10]} {[%emt
00:00:22]} 32. Rxa7 {[%clk 00:56:55]} {[%emt 00:03:26]} Qxc3 {[%clk 01:03:23]}
{[%emt 00:01:16]} 33. Ra4 {[%clk 00:54:28]} {[%emt 00:02:56]} Qe1+ {[%clk
01:03:06]} {[%emt 00:00:48]} 34. Qf1 {[%clk 00:51:38]} {[%emt 00:03:20]} Qd2
{[%clk 01:02:03]} {[%emt 00:01:33]} 35. Qb1 {[%clk 00:46:26]} {[%emt 00:05:41]}
Rc8 {[%clk 00:56:17]} {[%emt 00:06:16]} 36. Kg2 {[%clk 00:45:22]} {[%emt
00:01:33]} g6 {[%clk 00:55:24]} {[%emt 00:01:25]} 37. Qb4 {[%clk 00:42:01]}
{[%emt 00:03:50]} Qe2 {[%clk 00:54:43]} {[%emt 00:01:12]} 38. Qb3 {[%clk
00:26:10]} {[%emt 00:16:20]} Rc2 {[%clk 00:50:27]} {[%emt 00:04:47]} 39. Qf3
{[%clk 00:24:13]} {[%emt 00:02:26]} Rxa2 {[%clk 00:49:47]} {[%emt 00:01:11]} 40.
Rb4 {[%clk 00:23:34]} {[%emt 00:01:09]} Qe6 {[%clk 00:49:01]} {[%emt 00:01:16]}
41. Rb3 {[%clk 00:22:44]} {[%emt 00:01:19]} Ra4 {[%clk 00:47:40]} {[%emt
00:01:51]} 42. Re3 {[%clk 00:22:26]} {[%emt 00:00:48]} Qd6 {[%clk 00:44:50]}
{[%emt 00:03:21]} 43. Re8+ {[%clk 00:20:17]} {[%emt 00:02:38]} Kg7 {[%clk
00:44:31]} {[%emt 00:00:50]} 44. Qg4 {[%clk 00:19:54]} {[%emt 00:00:51]} f6
{[%clk 00:42:30]} {[%emt 00:02:32]} 45. Qh4 {[%clk 00:19:41]} {[%emt 00:00:43]}
Ra2 {[%clk 00:38:43]} {[%emt 00:04:18]} 46. Qh8+ {[%clk 00:19:54]} {[%emt
00:00:17]} Kf7 {[%clk 00:39:02]} {[%emt 00:00:11]} 47. Qg8# {[%clk 00:20:15]}
{[%emt 00:00:07]} 1-0

[Event "2. Itzehoer Schach Open"]
[Site "Itzehoe, Germany"]
[Date "2023.04.30"]
[Round "4.12"]
[White "Stehle, Fabian"]
[Black "Lichtmannecker, Daniel"]
[Result "1/2-1/2"]
[TimeControl "90 min / 40 Züge + 30 min + 30 Sek pro Zug"]
[WhiteElo "1569"]
[BlackElo "2162"]

1. e4 {[%clk 01:30:55]} {[%emt 00:00:04]} c6 {[%clk 01:25:03]} {[%emt
00:05:57]} 2. Nc3 {[%clk 01:31:18]} {[%emt 00:00:07]} d5 {[%clk 01:25:27]}
{[%emt 00:00:06]} 3. Nf3 {[%clk 01:31:41]} {[%emt 00:00:07]} dxe4 {[%clk
01:25:41]} {[%emt 00:00:16]} 4. Nxe4 {[%clk 01:32:05]} {[%emt 00:00:06]} Nf6
{[%clk 01:26:04]} {[%emt 00:00:07]} 5. Qe2 {[%clk 01:32:28]} {[%emt 00:00:06]}
Nxe4 {[%clk 01:26:26]} {[%emt 00:00:08]} 6. Qxe4 {[%clk 01:32:52]} {[%emt
00:00:06]} Nd7 {[%clk 01:26:50]} {[%emt 00:00:07]} 7. Bc4 {[%clk 01:33:16]}
{[%emt 00:00:06]} Nf6 {[%clk 01:27:14]} {[%emt 00:00:06]} 8. Ne5 {[%clk
01:33:38]} {[%emt 00:00:08]} e6 {[%clk 01:27:38]} {[%emt 00:00:06]} 9. Qe2
{[%clk 01:34:02]} {[%emt 00:00:05]} b5 {[%clk 01:27:56]} {[%emt 00:00:13]} 10.
Bb3 {[%clk 01:34:27]} {[%emt 00:00:06]} Qc7 {[%clk 01:27:40]} {[%emt 00:00:46]}
11. d4 {[%clk 01:34:25]} {[%emt 00:00:31]} Bd6 {[%clk 01:27:37]} {[%emt
00:00:33]} 12. Bf4 {[%clk 01:30:57]} {[%emt 00:03:57]} O-O {[%clk 01:26:28]}
{[%emt 00:01:40]} 13. O-O {[%clk 01:30:04]} {[%emt 00:01:23]} a5 {[%clk
01:25:20]} {[%emt 00:01:39]} 14. c3 {[%clk 01:29:12]} {[%emt 00:01:21]} c5
{[%clk 01:19:12]} {[%emt 00:06:38]} 15. Rad1 {[%clk 01:18:29]} {[%emt
00:11:12]} c4 {[%clk 01:17:45]} {[%emt 00:01:57]} 16. Bc2 {[%clk 01:18:25]}
{[%emt 00:00:34]} Bb7 {[%clk 01:18:05]} {[%emt 00:00:10]} 17. Bg5 {[%clk
01:04:37]} {[%emt 00:14:18]} Nd5 {[%emt 00:18:54]} 18. Bh4 {[%clk 00:51:10]}
{[%emt 00:00:23]} b4 {[%clk 01:01:09]} {[%emt 00:12:37]} 19. Qe4 {[%clk
00:38:00]} {[%emt 00:13:39]} f5 {[%clk 00:52:38]} {[%emt 00:09:02]} 20. Qe1
{[%clk 00:37:11]} {[%emt 00:01:19]} Bxe5 {[%clk 00:42:30]} {[%emt 00:10:38]} 21.
dxe5 {[%clk 00:32:55]} {[%emt 00:04:46]} Qc6 {[%clk 00:33:56]} {[%emt
00:09:04]} 22. f3 {[%clk 00:31:06]} {[%emt 00:02:18]} Ba6 {[%clk 00:28:21]}
{[%emt 00:06:06]} 23. Rd4 {[%clk 00:28:18]} {[%emt 00:03:18]} Rab8 {[%clk
00:26:48]} {[%emt 00:02:03]} 24. Rf2 {[%clk 00:23:38]} {[%emt 00:05:09]} bxc3
{[%clk 00:25:42]} {[%emt 00:01:37]} 25. bxc3 {[%clk 00:23:54]} {[%emt
00:00:13]} Qc5 {[%clk 00:24:25]} {[%emt 00:01:47]} 26. Re2 {[%clk 00:21:32]}
{[%emt 00:02:52]} Qa3 {[%clk 00:22:56]} {[%emt 00:01:59]} 27. Rxd5 {[%clk
00:18:13]} {[%emt 00:03:49]} exd5 {[%clk 00:23:06]} {[%emt 00:00:20]} 28. e6
{[%clk 00:18:18]} {[%emt 00:00:25]} Bc8 {[%clk 00:17:20]} {[%emt 00:06:16]} 29.
e7 {[%clk 00:12:26]} {[%emt 00:06:22]} Re8 {[%clk 00:17:42]} {[%emt 00:00:08]}
30. Qg3 {[%clk 00:10:39]} {[%emt 00:02:15]} Rb6 {[%clk 00:15:11]} {[%emt
00:03:03]} 31. Qc7 {[%clk 00:09:57]} {[%emt 00:01:12]} Qd6 {[%clk 00:12:42]}
{[%emt 00:02:59]} 32. Qxd6 {[%clk 00:08:36]} {[%emt 00:01:51]} Rxd6 {[%clk
00:13:06]} {[%emt 00:00:06]} 33. Ba4 {[%clk 00:06:20]} {[%emt 00:02:46]} Bd7
{[%clk 00:08:20]} {[%emt 00:05:17]} 34. Bg3 {[%clk 00:06:20]} {[%emt 00:00:29]}
Bxa4 {[%clk 00:08:40]} {[%emt 00:00:10]} 35. Bxd6 {[%clk 00:06:39]} {[%emt
00:00:11]} Kf7 {[%clk 00:08:36]} {[%emt 00:00:34]} 36. Re5 {[%clk 00:03:43]}
{[%emt 00:03:25]} Bc6 {[%clk 00:07:26]} {[%emt 00:01:41]} 37. Ba3 {[%clk
00:02:46]} {[%emt 00:01:27]} g6 {[%clk 00:05:45]} {[%emt 00:02:11]} 38. g3
{[%clk 00:02:27]} {[%emt 00:00:49]} Rb8 {[%clk 00:05:16]} {[%emt 00:00:59]} 39.
Kf2 {[%clk 00:02:10]} {[%emt 00:00:47]} Kf6 {[%clk 00:04:01]} {[%emt 00:01:45]}
40. f4 {[%clk 00:02:10]} {[%emt 00:00:28]} g5 {[%clk 00:04:04]} {[%emt
00:00:28]} 1/2-1/2

[Event "2. Itzehoer Schach Open"]
[Site "Itzehoe, Germany"]
[Date "2023.04.30"]
[Round "4.28"]
[White "Tran, Hanna Emilie Mai Hoa"]
[Black "Hansen, Fridolin"]
[Result "0-1"]
[TimeControl "90 min / 40 Züge + 30 min + 30 Sek pro Zug"]
[WhiteElo "1250"]
[BlackElo "1764"]

1. e4 {[%clk 01:30:57]} {[%emt 00:00:02]} d6 {[%clk 01:30:53]} {[%emt
00:00:08]} 2. d4 {[%clk 01:31:15]} {[%emt 00:00:12]} Nf6 {[%clk 01:31:19]}
{[%emt 00:00:04]} 3. Nc3 {[%clk 01:31:38]} {[%emt 00:00:07]} g6 {[%clk
01:31:44]} {[%emt 00:00:04]} 4. Bf4 {[%clk 01:31:37]} {[%emt 00:00:30]} Bg7
{[%clk 01:32:02]} {[%emt 00:00:13]} 5. Nf3 {[%clk 01:31:07]} {[%emt 00:01:00]}
O-O {[%clk 01:32:14]} {[%emt 00:00:18]} 6. h3 {[%clk 01:30:33]} {[%emt
00:01:04]} c6 {[%clk 01:32:35]} {[%emt 00:00:09]} 7. Bd3 {[%clk 01:28:34]}
{[%emt 00:02:30]} Nbd7 {[%clk 01:29:32]} {[%emt 00:03:32]} 8. Qd2 {[%clk
01:24:42]} {[%emt 00:04:22]} Re8 {[%clk 01:28:45]} {[%emt 00:01:18]} 9. e5
{[%clk 01:22:30]} {[%emt 00:02:42]} Nd5 {[%clk 01:26:53]} {[%emt 00:02:21]} 10.
Nxd5 {[%clk 01:22:17]} {[%emt 00:00:42]} cxd5 {[%clk 01:27:19]} {[%emt
00:00:05]} 11. O-O {[%clk 01:22:08]} {[%emt 00:00:39]} dxe5 {[%clk 01:27:01]}
{[%emt 00:00:48]} 12. Nxe5 {[%clk 01:21:48]} {[%emt 00:00:50]} Qb6 {[%clk
01:22:25]} {[%emt 00:05:07]} 13. c3 {[%clk 01:21:01]} {[%emt 00:01:17]} Nxe5
{[%clk 01:19:40]} {[%emt 00:03:15]} 14. Bxe5 {[%clk 01:21:02]} {[%emt
00:00:29]} f6 {[%clk 01:20:00]} {[%emt 00:00:10]} 15. Bf4 {[%clk 01:21:02]}
{[%emt 00:00:29]} e5 {[%clk 01:20:18]} {[%emt 00:00:12]} 16. dxe5 {[%clk
01:19:05]} {[%emt 00:02:27]} fxe5 {[%clk 01:20:43]} {[%emt 00:00:05]} 17. Bg5
{[%clk 01:17:29]} {[%emt 00:02:06]} Be6 {[%clk 01:18:02]} {[%emt 00:03:11]} 18.
Rfe1 {[%clk 01:04:03]} {[%emt 00:13:56]} e4 {[%clk 01:05:49]} {[%emt 00:12:44]}
19. Bc2 {[%clk 01:03:46]} {[%emt 00:00:47]} Qxb2 {[%clk 01:05:04]} {[%emt
00:01:15]} 20. Rab1 {[%clk 00:58:23]} {[%emt 00:05:53]} Qxc3 {[%clk 01:05:16]}
{[%emt 00:00:17]} 21. Qxc3 {[%clk 00:57:10]} {[%emt 00:01:43]} Bxc3 {[%clk
01:05:41]} {[%emt 00:00:06]} 22. Red1 {[%clk 00:57:31]} {[%emt 00:00:08]} b6
{[%clk 01:04:30]} {[%emt 00:01:41]} 23. Ba4 {[%emt 00:07:28]} Rec8 {[%clk
00:58:12]} 24. Bb3 {[%clk 00:56:39]} {[%emt 00:01:12]} Rc5 {[%clk 00:53:25]}
{[%emt 00:01:28]} 25. Be3 {[%clk 00:56:39]} {[%emt 00:04:19]} Ra5 {[%clk
00:52:03]} {[%emt 00:01:52]} 26. Bd2 {[%clk 00:56:46]} {[%emt 00:00:23]} Bxd2
{[%clk 00:52:06]} {[%emt 00:00:28]} 27. Rxd2 {[%clk 00:57:09]} {[%emt
00:00:06]} Rd8 {[%clk 00:51:24]} {[%emt 00:01:12]} 28. Rc1 {[%clk 00:53:09]}
{[%emt 00:04:30]} Rc5 {[%clk 00:51:44]} {[%emt 00:00:11]} 29. Re1 {[%clk
00:52:40]} {[%emt 00:00:58]} Rd6 {[%clk 00:44:11]} {[%emt 00:08:03]} 30. Re3
{[%clk 00:50:49]} {[%emt 00:02:21]} Bf7 {[%clk 00:34:19]} {[%emt 00:10:23]} 31.
f3 {[%clk 00:49:38]} {[%emt 00:01:41]} exf3 {[%clk 00:34:31]} {[%emt 00:00:18]}
32. Rxf3 {[%clk 00:49:55]} {[%emt 00:00:12]} b5 {[%clk 00:33:26]} {[%emt
00:01:35]} 33. Rf4 {[%clk 00:46:57]} {[%emt 00:03:29]} a5 {[%clk 00:32:24]}
{[%emt 00:01:32]} 34. a4 {[%clk 00:46:18]} {[%emt 00:01:08]} b4 {[%clk
00:31:00]} {[%emt 00:01:54]} 35. Kf2 {[%clk 00:40:14]} {[%emt 00:06:34]} Kg7
{[%clk 00:28:48]} {[%emt 00:02:42]} 36. Kg3 {[%clk 00:37:21]} {[%emt 00:03:22]}
Rc3+ {[%clk 00:27:20]} {[%emt 00:02:00]} 37. Rf3 {[%clk 00:37:22]} {[%emt
00:00:28]} Rxf3+ {[%clk 00:26:59]} {[%emt 00:00:51]} 38. Kxf3 {[%clk 00:37:44]}
{[%emt 00:00:07]} Kf6 {[%clk 00:27:14]} {[%emt 00:00:16]} 39. Rd4 {[%clk
00:37:03]} {[%emt 00:01:10]} Ke5 {[%clk 00:27:34]} {[%emt 00:00:11]} 40. Ke3
{[%clk 00:36:59]} {[%emt 00:00:34]} Rc6 {[%clk 00:27:45]} {[%emt 00:00:19]} 41.
Rd3 {[%clk 00:36:08]} {[%emt 00:01:20]} d4+ {[%clk 00:27:36]} {[%emt 00:00:39]}
42. Kf3 {[%clk 00:35:46]} {[%emt 00:00:53]} Bxb3 {[%clk 00:27:57]} {[%emt
00:00:08]} 43. Rxb3 {[%clk 00:34:23]} {[%emt 00:01:54]} Rc3+ {[%clk 00:28:19]}
{[%emt 00:00:08]} 44. Rxc3 {[%clk 00:34:46]} {[%emt 00:00:07]} bxc3 {[%clk
00:28:27]} {[%emt 00:00:22]} 0-1

[Event "2. Itzehoer Schach Open"]
[Site "Itzehoe, Germany"]
[Date "2023.04.30"]
[Round "4.27"]
[White "Vieito, Luis-Maria"]
[Black "Tobis, Julius"]
[Result "1/2-1/2"]
[TimeControl "90 min / 40 Züge + 30 min + 30 Sek pro Zug"]
[WhiteElo "1773"]
[BlackElo "1334"]

1. e4 {[%clk 01:30:59]} e5 {[%clk 01:30:46]} {[%emt 00:00:14]} 2. Nf3 {[%clk
01:31:25]} {[%emt 00:00:02]} Nc6 {[%clk 01:31:07]} {[%emt 00:00:11]} 3. Bb5
{[%clk 01:31:47]} {[%emt 00:00:08]} a6 {[%clk 01:31:22]} {[%emt 00:00:16]} 4.
Ba4 {[%clk 01:32:15]} {[%emt 00:00:01]} b5 {[%clk 01:31:20]} {[%emt 00:00:32]}
5. Bb3 {[%clk 01:32:44]} {[%emt 00:00:02]} Nf6 {[%clk 01:31:25]} {[%emt
00:00:25]} 6. O-O {[%clk 01:33:04]} {[%emt 00:00:10]} Be7 {[%clk 01:31:40]}
{[%emt 00:00:15]} 7. Qe2 {[%clk 01:33:32]} {[%emt 00:00:02]} O-O {[%clk
01:31:37]} {[%emt 00:00:33]} 8. c3 {[%clk 01:34:00]} {[%emt 00:00:02]} d6
{[%clk 01:31:43]} {[%emt 00:00:24]} 9. h3 {[%clk 01:34:28]} {[%emt 00:00:01]}
Re8 {[%clk 01:31:45]} {[%emt 00:00:29]} 10. d4 {[%clk 01:33:50]} {[%emt
00:01:06]} h6 {[%clk 01:30:15]} {[%emt 00:02:00]} 11. Be3 {[%clk 01:31:30]}
{[%emt 00:02:50]} Bf8 {[%clk 01:28:32]} {[%emt 00:02:14]} 12. Nbd2 {[%clk
01:30:40]} {[%emt 00:01:20]} Bb7 {[%clk 01:27:06]} {[%emt 00:01:56]} 13. d5
{[%clk 01:30:21]} {[%emt 00:00:48]} Ne7 {[%clk 01:26:32]} {[%emt 00:01:05]} 14.
a4 {[%clk 01:29:41]} {[%emt 00:01:10]} c6 {[%clk 01:25:22]} {[%emt 00:01:40]}
15. dxc6 {[%clk 01:22:24]} {[%emt 00:07:46]} Bxc6 {[%clk 01:25:23]} {[%emt
00:00:30]} 16. axb5 {[%clk 01:20:25]} {[%emt 00:02:29]} axb5 {[%clk 01:24:50]}
{[%emt 00:01:03]} 17. Qd3 {[%clk 01:16:42]} {[%emt 00:04:12]} Ng6 {[%clk
01:24:18]} {[%emt 00:01:03]} 18. c4 {[%clk 01:16:28]} {[%emt 00:00:44]} Qd7
{[%clk 01:22:56]} {[%emt 00:01:52]} 19. Nh2 {[%clk 01:03:51]} {[%emt 00:13:06]}
bxc4 {[%clk 01:21:52]} {[%emt 00:01:34]} 20. Bxc4 {[%clk 01:02:29]} {[%emt
00:01:52]} Rxa1 {[%clk 01:21:15]} {[%emt 00:01:07]} 21. Rxa1 {[%clk 01:02:18]}
{[%emt 00:00:41]} Ra8 {[%clk 01:20:49]} {[%emt 00:00:56]} 22. Rxa8 {[%clk
00:53:41]} {[%emt 00:09:07]} Bxa8 {[%clk 01:21:08]} {[%emt 00:00:10]} 23. Qc2
{[%clk 00:53:03]} {[%emt 00:01:09]} d5 {[%clk 01:18:47]} {[%emt 00:02:51]} 24.
exd5 {[%clk 00:51:53]} {[%emt 00:01:40]} Nxd5 {[%clk 01:16:36]} {[%emt
00:02:41]} 25. Nhf1 {[%clk 00:50:50]} {[%emt 00:01:32]} Ndf4 {[%clk 01:12:31]}
{[%emt 00:04:36]} 26. f3 {[%clk 00:45:38]} {[%emt 00:05:42]} Nh4 {[%clk
01:04:07]} {[%emt 00:08:55]} 27. Bxf4 {[%clk 00:40:42]} {[%emt 00:05:24]} exf4
{[%clk 01:04:22]} {[%emt 00:00:16]} 28. Kh2 {[%clk 00:41:03]} {[%emt 00:00:09]}
Qd4 {[%clk 00:59:39]} {[%emt 00:05:13]} 29. Qd3 {[%clk 00:34:54]} {[%emt
00:06:39]} Qxb2 {[%clk 00:58:39]} {[%emt 00:01:30]} 30. Qd8 {[%clk 00:34:46]}
{[%emt 00:00:38]} Qf6 {[%clk 00:55:35]} {[%emt 00:03:34]} 31. Qxa8 {[%clk
00:34:09]} {[%emt 00:01:08]} Qg5 {[%clk 00:55:39]} {[%emt 00:00:26]} 32. g4
{[%clk 00:34:37]} {[%emt 00:00:01]} fxg3+ {[%clk 00:55:47]} {[%emt 00:00:22]}
33. Kg1 {[%clk 00:35:05]} g2 {[%clk 00:54:41]} {[%emt 00:01:38]} 34. Bxf7+
{[%clk 00:34:43]} {[%emt 00:00:51]} Kxf7 {[%clk 00:48:24]} {[%emt 00:06:47]} 35.
Qa2+ {[%clk 00:34:47]} {[%emt 00:00:27]} Kg6 {[%clk 00:47:39]} {[%emt
00:01:14]} 36. Qe6+ {[%clk 00:34:22]} {[%emt 00:00:54]} Kh5 {[%clk 00:42:47]}
{[%emt 00:05:22]} 37. Qe8+ {[%clk 00:28:28]} {[%emt 00:06:25]} g6 {[%clk
00:42:45]} {[%emt 00:00:33]} 38. Qxf8 {[%clk 00:28:48]} {[%emt 00:00:09]}
gxf1=Q+ {[%clk 00:41:45]} {[%emt 00:01:30]} 39. Kxf1 {[%clk 00:29:03]} {[%emt
00:00:15]} Qg2+ {[%clk 00:41:56]} {[%emt 00:00:19]} 40. Ke1 {[%clk 00:29:31]}
{[%emt 00:00:01]} Qg1+ {[%clk 00:41:32]} {[%emt 00:00:56]} 41. Ke2 {[%clk
00:29:43]} {[%emt 00:00:18]} Ng2 {[%clk 00:38:31]} {[%emt 00:03:30]} 42. Ne4
{[%clk 00:26:36]} {[%emt 00:03:36]} Qe3+ {[%clk 00:37:01]} {[%emt 00:02:01]} 43.
Kd1 {[%clk 00:26:39]} {[%emt 00:00:27]} 1/2-1/2